[Event "Titled Tuesday Blitz June 20 Early 2023"]
[White "Ginzburg, Yakov"]
[Black "Coelho, Ramyres Santana"]
[WhiteFideId "4157176"]
[BlackFideId "2120690"]
[WhiteElo "2305"]
[BlackElo "1888"]
[Result "1-0"]
[Round "2"]
[TimeControl "180+2"]
[Date "2023.06.20"]
[WhiteClock "0:00:03"]
[BlackClock "0:00:05"]
[Board "204"]

1. e4 {[%clk 0:02:59]}  c5 {[%clk 0:02:57]} 2. Nf3 {[%clk 0:02:59]}  d6 {[%clk 0:02:56]} 3. d4 {[%clk 0:02:58]}  cxd4 {[%clk 0:02:57]} 4. Nxd4 {[%clk 0:02:59]}  Nf6 {[%clk 0:02:57]} 5. Nc3 {[%clk 0:02:58]}  a6 {[%clk 0:02:57]} 6. h3 {[%clk 0:02:56]}  e5 {[%clk 0:02:56]} 7. Nb3 {[%clk 0:02:55]}  Be6 {[%clk 0:02:54]} 8. g4 {[%clk 0:02:55]}  Nc6 {[%clk 0:02:55]} 9. g5 {[%clk 0:02:55]}  Nd7 {[%clk 0:02:54]} 10. Bg2 {[%clk 0:02:55]}  Be7 {[%clk 0:02:55]} 11. h4 {[%clk 0:02:36]}  b5 {[%clk 0:02:53]} 12. Be3 {[%clk 0:02:31]}  b4 {[%clk 0:02:51]} 13. Nd5 {[%clk 0:02:30]}  Bxd5 {[%clk 0:02:47]} 14. Qxd5 {[%clk 0:02:28]}  Rc8 {[%clk 0:02:42]} 15. O-O-O {[%clk 0:02:22]}  Nb6 {[%clk 0:02:40]} 16. Qd3 {[%clk 0:02:16]}  O-O {[%clk 0:02:28]} 17. Bh3 {[%clk 0:02:11]}  Ra8 {[%clk 0:02:23]} 18. Rdg1 {[%clk 0:02:04]}  a5 {[%clk 0:02:22]} 19. h5 {[%clk 0:02:00]}  a4 {[%clk 0:02:22]} 20. Nd2 {[%clk 0:01:57]}  b3 {[%clk 0:02:13]} 21. a3 {[%clk 0:01:56]}  bxc2 {[%clk 0:02:12]} 22. g6 {[%clk 0:01:55]}  Nd4 {[%clk 0:02:10]} 23. h6 {[%clk 0:01:45]}  fxg6 {[%clk 0:01:48]} 24. Bxd4 {[%clk 0:01:45]}  exd4 {[%clk 0:01:46]} 25. Be6+ {[%clk 0:01:45]}  Kh8 {[%clk 0:01:45]} 26. hxg7+ {[%clk 0:01:42]}  Kxg7 {[%clk 0:01:44]} 27. e5 {[%clk 0:01:28]}  Qe8 {[%clk 0:00:57]} 28. Qh3 {[%clk 0:01:15]}  h5 {[%clk 0:00:32]} 29. Bf5 {[%clk 0:00:47]}  Rxf5 {[%clk 0:00:17]} 30. Qxf5 {[%clk 0:00:47]}  Qf7 {[%clk 0:00:18]} 31. Qxh5 {[%clk 0:00:45]}  Kf8 {[%clk 0:00:02]} 32. Rxg6 {[%clk 0:00:41]}  Ke8 {[%clk 0:00:02]} 33. Rg8+ {[%clk 0:00:40]}  Bf8 {[%clk 0:00:01]} 34. e6 {[%clk 0:00:34]}  Qxh5 {[%clk 0:00:01]} 35. Rxh5 {[%clk 0:00:35]}  Ke7 {[%clk 0:00:02]} 36. Rh7+ {[%clk 0:00:30]}  Kxe6 {[%clk 0:00:02]} 37. Rhh8 {[%clk 0:00:30]}  Nd7 {[%clk 0:00:03]} 38. Nf3 {[%clk 0:00:26]}  d3 {[%clk 0:00:03]} 39. Kd2 {[%clk 0:00:23]}  Re8 {[%clk 0:00:03]} 40. Rg6+ {[%clk 0:00:22]}  Kd5 {[%clk 0:00:03]} 41. Rh1 {[%clk 0:00:19]}  Re2+ {[%clk 0:00:03]} 42. Kxd3 {[%clk 0:00:19]}  Rxf2 {[%clk 0:00:03]} 43. Rg5+ {[%clk 0:00:19]}  Ne5+ {[%clk 0:00:03]} 44. Nxe5 {[%clk 0:00:19]}  dxe5 {[%clk 0:00:04]} 45. Rg8 {[%clk 0:00:15]}  e4+ {[%clk 0:00:03]} 46. Kc3 {[%clk 0:00:13]}  Bd6 {[%clk 0:00:03]} 47. Rd8 {[%clk 0:00:09]}  Kc6 {[%clk 0:00:03]} 48. Rc1 {[%clk 0:00:06]}  Be5+ {[%clk 0:00:03]} 49. Kb4 {[%clk 0:00:04]}  Bxb2 {[%clk 0:00:04]} 50. Rc8+ {[%clk 0:00:04]}  Kb7 {[%clk 0:00:04]} 51. R1xc2 {[%clk 0:00:04]}  e3 {[%clk 0:00:05]} 52. R2c7+ {[%clk 0:00:03]}  Kb6 {[%clk 0:00:05]} 53. Rc6+ {[%clk 0:00:04]}  Kb7 {[%clk 0:00:05]} 54. R8c7+ {[%clk 0:00:04]}  Kb8 {[%clk 0:00:05]} 55. Re7 {[%clk 0:00:05]}  e2 {[%clk 0:00:05]} 56. Rg6 {[%clk 0:00:04]}  Bc3+ {[%clk 0:00:04]} 57. Kxc3 {[%clk 0:00:04]}  Rf3+ {[%clk 0:00:04]} 58. Kb4 {[%clk 0:00:04]}  Rxa3 {[%clk 0:00:05]} 59. Rg8# {[%clk 0:00:03]} 1-0


[Site "https://www.chess.com"]

[Event "Titled Tuesday Blitz June 20 Early 2023"]
[White "Xavier_mompel"]
[Black "Urbina Perez, Juan Antonio"]
[BlackFideId "2217368"]
[WhiteElo "2223"]
[BlackElo "2197"]
[Result "1/2-1/2"]
[Round "2"]
[TimeControl "180+2"]
[Date "2023.06.20"]
[WhiteClock "0:01:27"]
[BlackClock "0:02:13"]
[Board "205"]

1. e4 {[%clk 0:03:00]}  c5 {[%clk 0:02:53]} 2. Nf3 {[%clk 0:03:00]}  d6 {[%clk 0:02:53]} 3. d4 {[%clk 0:03:00]}  cxd4 {[%clk 0:02:54]} 4. Nxd4 {[%clk 0:03:00]}  Nf6 {[%clk 0:02:54]} 5. Nc3 {[%clk 0:03:00]}  a6 {[%clk 0:02:54]} 6. Be3 {[%clk 0:03:00]}  e5 {[%clk 0:02:54]} 7. Nf3 {[%clk 0:03:00]}  Be7 {[%clk 0:02:54]} 8. Bc4 {[%clk 0:03:00]}  O-O {[%clk 0:02:53]} 9. O-O {[%clk 0:03:00]}  Nc6 {[%clk 0:02:53]} 10. Bb3 {[%clk 0:02:58]}  Na5 {[%clk 0:02:53]} 11. Bg5 {[%clk 0:02:46]}  Nxb3 {[%clk 0:02:52]} 12. axb3 {[%clk 0:02:47]}  Be6 {[%clk 0:02:52]} 13. Bxf6 {[%clk 0:02:46]}  Bxf6 {[%clk 0:02:53]} 14. Nd5 {[%clk 0:02:46]}  Bg5 {[%clk 0:02:41]} 15. Nxg5 {[%clk 0:02:21]}  Qxg5 {[%clk 0:02:42]} 16. Ne3 {[%clk 0:02:21]}  Rad8 {[%clk 0:02:39]} 17. Qd3 {[%clk 0:02:18]}  f5 {[%clk 0:02:34]} 18. exf5 {[%clk 0:02:17]}  Bxf5 {[%clk 0:02:35]} 19. Nxf5 {[%clk 0:02:11]}  Qxf5 {[%clk 0:02:36]} 20. Qd5+ {[%clk 0:02:05]}  Qf7 {[%clk 0:02:34]} 21. Rad1 {[%clk 0:02:03]}  Qxd5 {[%clk 0:02:33]} 22. Rxd5 {[%clk 0:02:04]}  Kf7 {[%clk 0:02:32]} 23. Rfd1 {[%clk 0:02:00]}  Ke6 {[%clk 0:02:32]} 24. c4 {[%clk 0:01:56]}  b6 {[%clk 0:02:26]} 25. Ra1 {[%clk 0:01:47]}  a5 {[%clk 0:02:25]} 26. Rad1 {[%clk 0:01:48]}  Rf7 {[%clk 0:02:24]} 27. Kf1 {[%clk 0:01:46]}  Rc7 {[%clk 0:02:23]} 28. Ke2 {[%clk 0:01:37]}  Rc5 {[%clk 0:02:23]} 29. Ke3 {[%clk 0:01:30]}  Ra8 {[%clk 0:02:13]} 30. Rxd6+ {[%clk 0:01:27]} 1/2-1/2


[Site "https://www.chess.com"]

[Event "Titled Tuesday Blitz June 20 Early 2023"]
[White "Aggelis, Nikolaos"]
[Black "Politov, Pavel Y."]
[WhiteFideId "4213220"]
[BlackFideId "24110515"]
[WhiteElo "2189"]
[BlackElo "2066"]
[Result "1-0"]
[Round "2"]
[TimeControl "180+2"]
[Date "2023.06.20"]
[WhiteClock "0:00:13"]
[BlackClock "0:00:00"]
[Board "206"]

1. c4 {[%clk 0:03:00]}  e5 {[%clk 0:02:56]} 2. g3 {[%clk 0:02:58]}  Nf6 {[%clk 0:02:55]} 3. Bg2 {[%clk 0:02:58]}  c6 {[%clk 0:02:47]} 4. Nf3 {[%clk 0:02:55]}  Qc7 {[%clk 0:02:46]} 5. O-O {[%clk 0:02:51]}  d5 {[%clk 0:02:43]} 6. d4 {[%clk 0:02:52]}  e4 {[%clk 0:02:39]} 7. Ne5 {[%clk 0:02:52]}  Be7 {[%clk 0:02:35]} 8. Nc3 {[%clk 0:02:50]}  O-O {[%clk 0:02:29]} 9. Bf4 {[%clk 0:02:46]}  Qd8 {[%clk 0:02:27]} 10. Qb3 {[%clk 0:02:36]}  Qb6 {[%clk 0:02:18]} 11. Qxb6 {[%clk 0:02:17]}  axb6 {[%clk 0:02:16]} 12. cxd5 {[%clk 0:02:18]}  cxd5 {[%clk 0:02:12]} 13. f3 {[%clk 0:02:13]}  exf3 {[%clk 0:02:06]} 14. Bxf3 {[%clk 0:02:14]}  Be6 {[%clk 0:02:06]} 15. Bg5 {[%clk 0:02:09]}  Rd8 {[%clk 0:02:00]} 16. Rac1 {[%clk 0:01:01]}  Nbd7 {[%clk 0:01:56]} 17. Nd3 {[%clk 0:00:59]}  Rac8 {[%clk 0:01:46]} 18. a3 {[%clk 0:00:58]}  h6 {[%clk 0:01:43]} 19. Bf4 {[%clk 0:00:58]}  Nf8 {[%clk 0:01:34]} 20. Nb5 {[%clk 0:00:55]}  Rc6 {[%clk 0:01:20]} 21. Rxc6 {[%clk 0:00:36]}  bxc6 {[%clk 0:01:19]} 22. Na7 {[%clk 0:00:37]}  c5 {[%clk 0:01:07]} 23. Nc6 {[%clk 0:00:37]}  Rd7 {[%clk 0:01:01]} 24. Nxe7+ {[%clk 0:00:37]}  Rxe7 {[%clk 0:01:01]} 25. dxc5 {[%clk 0:00:37]}  bxc5 {[%clk 0:00:57]} 26. Nxc5 {[%clk 0:00:38]}  N8d7 {[%clk 0:00:55]} 27. Rc1 {[%clk 0:00:34]}  Nxc5 {[%clk 0:00:54]} 28. Rxc5 {[%clk 0:00:35]}  Rb7 {[%clk 0:00:53]} 29. b4 {[%clk 0:00:34]}  Nd7 {[%clk 0:00:51]} 30. Rc8+ {[%clk 0:00:33]}  Kh7 {[%clk 0:00:49]} 31. Ra8 {[%clk 0:00:32]}  Nb6 {[%clk 0:00:47]} 32. Ra6 {[%clk 0:00:30]}  Nc4 {[%clk 0:00:46]} 33. Ra8 {[%clk 0:00:22]}  Nb6 {[%clk 0:00:35]} 34. Ra6 {[%clk 0:00:20]}  Nc4 {[%clk 0:00:34]} 35. h4 {[%clk 0:00:20]}  g6 {[%clk 0:00:31]} 36. Kf2 {[%clk 0:00:20]}  Kg7 {[%clk 0:00:29]} 37. Be3 {[%clk 0:00:19]}  Nxe3 {[%clk 0:00:24]} 38. Kxe3 {[%clk 0:00:20]}  Rc7 {[%clk 0:00:23]} 39. b5 {[%clk 0:00:20]}  Rc3+ {[%clk 0:00:23]} 40. Kf2 {[%clk 0:00:20]}  Rb3 {[%clk 0:00:20]} 41. a4 {[%clk 0:00:20]}  d4 {[%clk 0:00:16]} 42. Ra7 {[%clk 0:00:18]}  Rb2 {[%clk 0:00:16]} 43. Ke1 {[%clk 0:00:18]}  Rb3 {[%clk 0:00:12]} 44. Kd2 {[%clk 0:00:18]}  Rb4 {[%clk 0:00:12]} 45. Kd3 {[%clk 0:00:16]}  Bf5+ {[%clk 0:00:12]} 46. Kd2 {[%clk 0:00:17]}  Be6 {[%clk 0:00:11]} 47. Bc6 {[%clk 0:00:16]}  Bb3 {[%clk 0:00:11]} 48. Rd7 {[%clk 0:00:15]}  Bxa4 {[%clk 0:00:09]} 49. Rd5 {[%clk 0:00:13]}  f6 {[%clk 0:00:06]} 50. Kd3 {[%clk 0:00:12]}  Rb3+ {[%clk 0:00:03]} 51. Kxd4 {[%clk 0:00:12]}  Rb4+ {[%clk 0:00:04]} 52. Kc3 {[%clk 0:00:11]}  Re4 {[%clk 0:00:03]} 53. Rd4 {[%clk 0:00:11]}  Rxd4 {[%clk 0:00:03]} 54. Kxd4 {[%clk 0:00:12]}  Kf7 {[%clk 0:00:02]} 55. Kc5 {[%clk 0:00:12]}  Ke7 {[%clk 0:00:03]} 56. b6 {[%clk 0:00:13]}  Bxc6 {[%clk 0:00:02]} 57. Kxc6 {[%clk 0:00:14]}  Kd8 {[%clk 0:00:00]} 58. b7 {[%clk 0:00:13]} 1-0


[Site "https://www.chess.com"]

[Event "Titled Tuesday Blitz June 20 Early 2023"]
[White "Vila Dupla, Aurelio"]
[Black "Khamdamova, Afruza"]
[WhiteFideId "2203383"]
[BlackFideId "14210444"]
[WhiteElo "2009"]
[BlackElo "2312"]
[Result "0-1"]
[Round "2"]
[TimeControl "180+2"]
[Date "2023.06.20"]
[WhiteClock "0:00:20"]
[BlackClock "0:00:37"]
[Board "207"]

1. Nf3 {[%clk 0:03:00]}  Nf6 {[%clk 0:03:00]} 2. d4 {[%clk 0:02:59]}  d5 {[%clk 0:02:59]} 3. c4 {[%clk 0:02:59]}  e6 {[%clk 0:02:59]} 4. cxd5 {[%clk 0:02:59]}  exd5 {[%clk 0:03:00]} 5. Nc3 {[%clk 0:02:59]}  Be7 {[%clk 0:03:00]} 6. Qc2 {[%clk 0:02:59]}  O-O {[%clk 0:02:59]} 7. Bg5 {[%clk 0:02:58]}  c6 {[%clk 0:02:58]} 8. e3 {[%clk 0:02:58]}  Re8 {[%clk 0:02:54]} 9. Bd3 {[%clk 0:02:58]}  h6 {[%clk 0:02:53]} 10. Bh4 {[%clk 0:02:56]}  Nbd7 {[%clk 0:02:53]} 11. O-O {[%clk 0:02:55]}  Ne4 {[%clk 0:02:51]} 12. Bxe7 {[%clk 0:02:42]}  Qxe7 {[%clk 0:02:50]} 13. Rfe1 {[%clk 0:02:20]}  Ndf6 {[%clk 0:02:48]} 14. Bxe4 {[%clk 0:02:08]}  Nxe4 {[%clk 0:02:29]} 15. Nxe4 {[%clk 0:02:06]}  dxe4 {[%clk 0:02:29]} 16. Nd2 {[%clk 0:02:06]}  Bf5 {[%clk 0:02:29]} 17. f4 {[%clk 0:02:05]}  Rac8 {[%clk 0:02:19]} 18. Rac1 {[%clk 0:02:04]}  b6 {[%clk 0:02:18]} 19. Nb3 {[%clk 0:01:51]}  Qf6 {[%clk 0:01:57]} 20. Qe2 {[%clk 0:01:33]}  Rc7 {[%clk 0:01:39]} 21. Rc3 {[%clk 0:01:31]}  Be6 {[%clk 0:01:34]} 22. Rec1 {[%clk 0:01:24]}  Bd5 {[%clk 0:01:33]} 23. Qc2 {[%clk 0:00:58]}  Rce7 {[%clk 0:01:31]} 24. a3 {[%clk 0:00:52]}  Re6 {[%clk 0:01:19]} 25. Nd2 {[%clk 0:00:52]}  Qh4 {[%clk 0:01:18]} 26. Nc4 {[%clk 0:00:50]}  f6 {[%clk 0:00:57]} 27. Qf2 {[%clk 0:00:50]}  Qh5 {[%clk 0:00:49]} 28. b4 {[%clk 0:00:49]}  Rd8 {[%clk 0:00:47]} 29. a4 {[%clk 0:00:45]}  Qf7 {[%clk 0:00:44]} 30. a5 {[%clk 0:00:40]}  b5 {[%clk 0:00:40]} 31. Nd2 {[%clk 0:00:34]}  Red6 {[%clk 0:00:38]} 32. Nf1 {[%clk 0:00:28]}  f5 {[%clk 0:00:38]} 33. Nd2 {[%clk 0:00:26]}  Rg6 {[%clk 0:00:38]} 34. Nb3 {[%clk 0:00:25]}  Bxb3 {[%clk 0:00:37]} 35. Qb2 {[%clk 0:00:20]}  Bc4 {[%clk 0:00:37]} 0-1


[Site "https://www.chess.com"]

[Event "Titled Tuesday Blitz June 20 Early 2023"]
[White "Shapiro, Viktor"]
[Black "Kiseleva, Arina"]
[WhiteFideId "4175700"]
[BlackFideId "4164989"]
[WhiteElo "2212"]
[BlackElo "1701"]
[Result "1-0"]
[Round "2"]
[TimeControl "180+2"]
[Date "2023.06.20"]
[WhiteClock "0:01:18"]
[BlackClock "0:00:00"]
[Board "208"]

1. c4 {[%clk 0:03:00]}  e5 {[%clk 0:02:59]} 2. Nc3 {[%clk 0:03:00]}  Bb4 {[%clk 0:03:00]} 3. g3 {[%clk 0:03:00]}  Ne7 {[%clk 0:02:58]} 4. Bg2 {[%clk 0:03:00]}  O-O {[%clk 0:02:57]} 5. Nf3 {[%clk 0:03:00]}  d6 {[%clk 0:02:57]} 6. O-O {[%clk 0:03:00]}  Nbc6 {[%clk 0:02:56]} 7. d4 {[%clk 0:03:00]}  Bxc3 {[%clk 0:02:53]} 8. bxc3 {[%clk 0:03:00]}  f6 {[%clk 0:02:39]} 9. e4 {[%clk 0:02:55]}  Ng6 {[%clk 0:02:36]} 10. Rb1 {[%clk 0:02:53]}  Nce7 {[%clk 0:02:32]} 11. Ba3 {[%clk 0:02:50]}  b6 {[%clk 0:02:28]} 12. c5 {[%clk 0:02:48]}  dxc5 {[%clk 0:02:02]} 13. Qb3+ {[%clk 0:02:47]}  Kh8 {[%clk 0:01:59]} 14. dxc5 {[%clk 0:02:47]}  Rb8 {[%clk 0:01:50]} 15. Rbd1 {[%clk 0:02:46]}  Qe8 {[%clk 0:01:48]} 16. Rd2 {[%clk 0:02:26]}  Ba6 {[%clk 0:01:42]} 17. Rfd1 {[%clk 0:02:19]}  bxc5 {[%clk 0:01:37]} 18. Qe6 {[%clk 0:02:12]}  Rb6 {[%clk 0:01:34]} 19. Qd7 {[%clk 0:02:10]}  Qxd7 {[%clk 0:01:23]} 20. Rxd7 {[%clk 0:02:10]}  Rc6 {[%clk 0:01:24]} 21. h4 {[%clk 0:02:07]}  h5 {[%clk 0:01:21]} 22. Bf1 {[%clk 0:01:59]}  Bc8 {[%clk 0:00:59]} 23. Rd8 {[%clk 0:01:58]}  Bg4 {[%clk 0:00:58]} 24. Rxf8+ {[%clk 0:01:56]}  Nxf8 {[%clk 0:00:59]} 25. Rd8 {[%clk 0:01:56]}  Bxf3 {[%clk 0:00:50]} 26. Rxf8+ {[%clk 0:01:56]}  Kh7 {[%clk 0:00:51]} 27. Re8 {[%clk 0:01:43]}  Ng6 {[%clk 0:00:45]} 28. Bg2 {[%clk 0:01:39]}  Bxg2 {[%clk 0:00:41]} 29. Kxg2 {[%clk 0:01:39]}  Ra6 {[%clk 0:00:38]} 30. Bxc5 {[%clk 0:01:39]}  Rxa2 {[%clk 0:00:38]} 31. Rc8 {[%clk 0:01:36]}  a5 {[%clk 0:00:16]} 32. Rxc7 {[%clk 0:01:35]}  a4 {[%clk 0:00:17]} 33. Bb4 {[%clk 0:01:34]}  Kg8 {[%clk 0:00:12]} 34. Kf3 {[%clk 0:01:32]}  Rb2 {[%clk 0:00:10]} 35. Ra7 {[%clk 0:01:31]}  Ra2 {[%clk 0:00:08]} 36. Ke3 {[%clk 0:01:30]}  Nh8 {[%clk 0:00:06]} 37. f4 {[%clk 0:01:24]}  exf4+ {[%clk 0:00:05]} 38. gxf4 {[%clk 0:01:24]}  Rh2 {[%clk 0:00:04]} 39. f5 {[%clk 0:01:22]}  Rxh4 {[%clk 0:00:03]} 40. Ra8+ {[%clk 0:01:21]}  Kh7 {[%clk 0:00:03]} 41. Rxa4 {[%clk 0:01:22]}  Nf7 {[%clk 0:00:02]} 42. Ra7 {[%clk 0:01:22]}  Rh3+ {[%clk 0:00:02]} 43. Kd4 {[%clk 0:01:22]}  Ne5 {[%clk 0:00:03]} 44. Kd5 {[%clk 0:01:18]}  Rd3+ {[%clk 0:00:02]} 45. Ke6 {[%clk 0:01:18]}  h4 {[%clk 0:00:00]} 46. Bf8 {[%clk 0:01:18]} 1-0


[Site "https://www.chess.com"]

[Event "Titled Tuesday Blitz June 20 Early 2023"]
[White "Przybylski, Wojciech"]
[Black "SicilianPanzer"]
[WhiteFideId "1117599"]
[WhiteElo "2228"]
[BlackElo "2213"]
[Result "1-0"]
[Round "2"]
[TimeControl "180+2"]
[Date "2023.06.20"]
[WhiteClock "0:01:21"]
[BlackClock "0:00:00"]
[Board "211"]

1. d4 {[%clk 0:02:58]}  Nf6 {[%clk 0:02:59]} 2. c4 {[%clk 0:02:59]}  e6 {[%clk 0:02:59]} 3. Nf3 {[%clk 0:02:58]}  d5 {[%clk 0:02:59]} 4. Nc3 {[%clk 0:02:58]}  dxc4 {[%clk 0:02:59]} 5. e4 {[%clk 0:02:58]}  b5 {[%clk 0:02:59]} 6. a3 {[%clk 0:02:58]}  a6 {[%clk 0:02:50]} 7. Be2 {[%clk 0:02:57]}  Bb7 {[%clk 0:02:49]} 8. Qc2 {[%clk 0:02:57]}  c5 {[%clk 0:02:43]} 9. Be3 {[%clk 0:02:50]}  Ng4 {[%clk 0:02:28]} 10. Rd1 {[%clk 0:02:45]}  Nxe3 {[%clk 0:02:26]} 11. fxe3 {[%clk 0:02:45]}  Qf6 {[%clk 0:02:23]} 12. O-O {[%clk 0:02:44]}  Qh6 {[%clk 0:02:20]} 13. Qc1 {[%clk 0:02:38]}  Nd7 {[%clk 0:01:38]} 14. d5 {[%clk 0:02:29]}  e5 {[%clk 0:01:20]} 15. a4 {[%clk 0:02:24]}  Qb6 {[%clk 0:01:05]} 16. Ng5 {[%clk 0:02:19]}  Qg6 {[%clk 0:00:46]} 17. Nxf7 {[%clk 0:02:12]}  Be7 {[%clk 0:00:37]} 18. Nxh8 {[%clk 0:02:11]}  Qb6 {[%clk 0:00:18]} 19. Nf7 {[%clk 0:02:04]}  Bf6 {[%clk 0:00:17]} 20. Bh5 {[%clk 0:01:52]}  g6 {[%clk 0:00:17]} 21. Rxf6 {[%clk 0:01:41]}  Nxf6 {[%clk 0:00:12]} 22. Bxg6 {[%clk 0:01:40]}  hxg6 {[%clk 0:00:11]} 23. Nxe5 {[%clk 0:01:40]}  b4 {[%clk 0:00:09]} 24. Ne2 {[%clk 0:01:40]}  Nxe4 {[%clk 0:00:06]} 25. Qxc4 {[%clk 0:01:39]}  Nd6 {[%clk 0:00:06]} 26. Qh4 {[%clk 0:01:39]}  Qc7 {[%clk 0:00:02]} 27. Nf4 {[%clk 0:01:39]}  Qg7 {[%clk 0:00:02]} 28. Nfxg6 {[%clk 0:01:38]}  Nf5 {[%clk 0:00:01]} 29. Qc4 {[%clk 0:01:36]}  Nxe3 {[%clk 0:00:01]} 30. Qxc5 {[%clk 0:01:27]}  Nxd1 {[%clk 0:00:02]} 31. d6 {[%clk 0:01:27]}  Rd8 {[%clk 0:00:01]} 32. Qd4 {[%clk 0:01:23]}  Rd7 {[%clk 0:00:01]} 33. Qxd1 {[%clk 0:01:22]}  Rxd6 {[%clk 0:00:00]} 34. Qxd6 {[%clk 0:01:21]} 1-0


[Site "https://www.chess.com"]

[Event "Titled Tuesday Blitz June 20 Early 2023"]
[White "Morgunov, Anatoly"]
[Black "Quirke, Jeffrey"]
[WhiteFideId "4145909"]
[BlackFideId "2013029"]
[WhiteElo "2237"]
[BlackElo "2197"]
[Result "1-0"]
[Round "2"]
[TimeControl "180+2"]
[Date "2023.06.20"]
[WhiteClock "0:00:45"]
[BlackClock "0:00:00"]
[Board "216"]

1. d4 {[%clk 0:03:00]}  e6 {[%clk 0:02:58]} 2. c4 {[%clk 0:02:59]}  b6 {[%clk 0:02:57]} 3. Nf3 {[%clk 0:02:58]}  Bb7 {[%clk 0:02:56]} 4. g3 {[%clk 0:02:58]}  Bb4+ {[%clk 0:02:53]} 5. Bd2 {[%clk 0:02:58]}  Bxf3 {[%clk 0:02:51]} 6. exf3 {[%clk 0:02:57]}  Bxd2+ {[%clk 0:02:51]} 7. Qxd2 {[%clk 0:02:57]}  Ne7 {[%clk 0:02:45]} 8. Bg2 {[%clk 0:02:57]}  d5 {[%clk 0:02:45]} 9. f4 {[%clk 0:02:55]}  c6 {[%clk 0:02:43]} 10. Na3 {[%clk 0:02:47]}  O-O {[%clk 0:02:40]} 11. O-O {[%clk 0:02:47]}  Nd7 {[%clk 0:02:33]} 12. b3 {[%clk 0:02:46]}  Qc8 {[%clk 0:02:29]} 13. Nc2 {[%clk 0:02:45]}  Qa6 {[%clk 0:02:29]} 14. Ne3 {[%clk 0:02:45]}  Rac8 {[%clk 0:02:23]} 15. Rac1 {[%clk 0:02:44]}  Qa3 {[%clk 0:02:12]} 16. Rc2 {[%clk 0:02:40]}  b5 {[%clk 0:01:53]} 17. Rfc1 {[%clk 0:02:35]}  a5 {[%clk 0:01:33]} 18. h4 {[%clk 0:02:28]}  Nb6 {[%clk 0:01:02]} 19. Kh2 {[%clk 0:02:21]}  h6 {[%clk 0:00:39]} 20. Bf3 {[%clk 0:02:15]}  Rfd8 {[%clk 0:00:39]} 21. Kg2 {[%clk 0:02:15]}  c5 {[%clk 0:00:19]} 22. cxb5 {[%clk 0:02:07]}  cxd4 {[%clk 0:00:18]} 23. Qxd4 {[%clk 0:02:02]}  Qd6 {[%clk 0:00:08]} 24. a4 {[%clk 0:01:52]}  f6 {[%clk 0:00:05]} 25. Qd2 {[%clk 0:01:43]}  Rxc2 {[%clk 0:00:05]} 26. Rxc2 {[%clk 0:01:42]}  e5 {[%clk 0:00:05]} 27. fxe5 {[%clk 0:01:40]}  fxe5 {[%clk 0:00:06]} 28. Nd1 {[%clk 0:01:27]}  e4 {[%clk 0:00:05]} 29. Be2 {[%clk 0:01:23]}  d4 {[%clk 0:00:05]} 30. Bc4+ {[%clk 0:01:23]}  Kh8 {[%clk 0:00:05]} 31. Nb2 {[%clk 0:01:15]}  Qe5 {[%clk 0:00:03]} 32. Rc1 {[%clk 0:01:09]}  Nf5 {[%clk 0:00:03]} 33. Qf4 {[%clk 0:01:04]}  Qxf4 {[%clk 0:00:02]} 34. gxf4 {[%clk 0:01:04]}  e3 {[%clk 0:00:03]} 35. Bd3 {[%clk 0:00:57]}  Nxh4+ {[%clk 0:00:03]} 36. Kg3 {[%clk 0:00:56]}  g5 {[%clk 0:00:02]} 37. fxg5 {[%clk 0:00:55]}  hxg5 {[%clk 0:00:03]} 38. fxe3 {[%clk 0:00:55]}  dxe3 {[%clk 0:00:03]} 39. Re1 {[%clk 0:00:54]}  Re8 {[%clk 0:00:02]} 40. Kg4 {[%clk 0:00:50]}  Nd5 {[%clk 0:00:02]} 41. Nc4 {[%clk 0:00:46]}  Nf6+ {[%clk 0:00:00]} 42. Kxg5 {[%clk 0:00:45]} 1-0


[Site "https://www.chess.com"]

[Event "Titled Tuesday Blitz June 20 Early 2023"]
[White "KSho99"]
[Black "Papayan, Oleg"]
[BlackFideId "4193911"]
[WhiteElo "2192"]
[BlackElo "2167"]
[Result "0-1"]
[Round "2"]
[TimeControl "180+2"]
[Date "2023.06.20"]
[WhiteClock "0:00:04"]
[BlackClock "0:00:36"]
[Board "217"]

1. Nf3 {[%clk 0:03:00]}  Nf6 {[%clk 0:02:59]} 2. b3 {[%clk 0:03:00]}  c5 {[%clk 0:02:59]} 3. Bb2 {[%clk 0:02:59]}  Nc6 {[%clk 0:02:59]} 4. e3 {[%clk 0:02:57]}  d5 {[%clk 0:02:58]} 5. Bb5 {[%clk 0:02:56]}  Bd7 {[%clk 0:02:58]} 6. O-O {[%clk 0:02:54]}  e6 {[%clk 0:02:53]} 7. d4 {[%clk 0:02:48]}  cxd4 {[%clk 0:02:37]} 8. exd4 {[%clk 0:02:47]}  Bd6 {[%clk 0:02:33]} 9. Re1 {[%clk 0:02:46]}  O-O {[%clk 0:02:33]} 10. Nbd2 {[%clk 0:02:43]}  a6 {[%clk 0:02:32]} 11. Bd3 {[%clk 0:02:42]}  Nb4 {[%clk 0:02:32]} 12. Bf1 {[%clk 0:02:41]}  Bb5 {[%clk 0:02:31]} 13. c4 {[%clk 0:02:35]}  Bd7 {[%clk 0:02:21]} 14. a3 {[%clk 0:02:21]}  Nc6 {[%clk 0:02:21]} 15. c5 {[%clk 0:02:21]}  Bc7 {[%clk 0:02:20]} 16. b4 {[%clk 0:02:20]}  Re8 {[%clk 0:02:09]} 17. Ne5 {[%clk 0:02:10]}  Re7 {[%clk 0:01:43]} 18. Bd3 {[%clk 0:02:01]}  Nxe5 {[%clk 0:01:37]} 19. dxe5 {[%clk 0:02:01]}  Ne8 {[%clk 0:01:35]} 20. Re3 {[%clk 0:01:44]}  g6 {[%clk 0:01:08]} 21. h4 {[%clk 0:01:38]}  Bb5 {[%clk 0:01:06]} 22. Bc2 {[%clk 0:01:28]}  Ng7 {[%clk 0:01:06]} 23. Rh3 {[%clk 0:01:01]}  d4 {[%clk 0:00:48]} 24. h5 {[%clk 0:00:55]}  Bxe5 {[%clk 0:00:41]} 25. hxg6 {[%clk 0:00:45]}  fxg6 {[%clk 0:00:42]} 26. Nf3 {[%clk 0:00:36]}  Bf6 {[%clk 0:00:41]} 27. Nxd4 {[%clk 0:00:31]}  Rd7 {[%clk 0:00:36]} 28. Qg4 {[%clk 0:00:04]}  Bxd4 {[%clk 0:00:36]} 0-1


[Site "https://www.chess.com"]